Cogmind - Beta 17 @@@ ROGUE MODE // 2026.08.13 @ 00:43:45 Player: beep Result: Destroyed by PW-0WZ(x) with Makeshift Spear Performance ------------- Evolutions (0) 0 Regions Visited (3) 600 Robots Destroyed (11) 55 Value Destroyed (268) 268 Prototype IDs (6) 120 Alien Tech Used (0) 0 Bonus (771) 771 TOTAL SCORE: 1814 Bonus ------- Registered with UFD 300 Met Optimus in HQ 500 Friendly Fire -29 Cogmind --------- Core Integrity 0/250 Matter 290/300 Energy 136/140 System Corruption 0% Temperature Hot (258) Movement Walking (120) Location -8/Scraptown Parts ------- > --- POWER (1) -------- Light Deuterium Engine > --- PROPULSION (2) --- Aluminum Leg Aluminum Leg > --- UTILITY (2) ------ Makeshift Salvage Targeting Computer Improved Medium Armor Plating > --- WEAPON (2) ------- Overtuned Pulse Rifle Overtuned Pulse Rifle > --- INVENTORY (5) ---- Light Deuterium Engine Peak State ------------ > --- POWER ------------ Fusion Compressor > --- PROPULSION ------- Overtuned Flexi-carbon Leg Overtuned Flexi-carbon Leg > --- UTILITY ---------- Scrap Shield > --- WEAPON ----------- Riot Gun Heavy Particle Cannon > --- INVENTORY -------- Aluminum Leg Aluminum Leg Hardlight Generator CPS Tube CPS Tube [Rating: 28] Favorites ----------- Power Ion Engine Engine Ion Engine Power Core Fusion Compressor Propulsion Aluminum Leg Leg Aluminum Leg Utility Scrap Shield Device Improved Heat Sink Storage High-capacity Battery Processor Machine Analyzer Protection Scrap Shield Weapon Riot Gun Energy Gun Riot Gun Energy Cannon Heavy Particle Cannon Ballistic Cannon Light Cannon Special Weapon CPS Tube Build | -11 -10 -10 -8 ------- Run | Yrd Mat Sub Scr Slots Evolved . | . . . . Power . | . . . . Propulsion . | . . . . Utility . | . . . . Weapon . | . . . . Parts Attached 35 | 6 5 4 20 Power 6 | . 1 . 5 Engine 5 | . 1 . 4 Core 1 | . . . 1 Reactor . | . . . . Propulsion 6 | 2 . . 4 Treads . | . . . . Leg 6 | 2 . . 4 Wheel . | . . . . Hover . | . . . . Flight . | . . . . Utility 10 | 2 2 3 3 Device 2 | . . 2 . Storage 4 | 2 2 . . Processor 2 | . . . 2 Hackware . | . . . . Protection 2 | . . 1 1 Artifact . | . . . . Weapon 13 | 2 2 1 8 Energy Gun 6 | 2 1 . 3 Energy Cannon 2 | . . . 2 Ballistic Gun . | . . . . Ballistic Cannon 2 | . 1 1 . Launcher . | . . . . Special Weapon 3 | . . . 3 Impact Weapon . | . . . . Slashing Weapon . | . . . . Piercing Weapon . | . . . . Special Melee Weapon . | . . . . Unidentified Prototypes . | . . . . Parts Lost 6 | . . . 6 Power 2 | . . . 2 Propulsion 1 | . . . 1 Utility 1 | . . . 1 Weapon 2 | . . . 2 Highest Loss Streak 5 | . . . 5 To Critical Strikes . | . . . . Average Backups 4 | 2 5 4 4 Power . | . . . . Propulsion 1 | 1 1 2 1 Utility . | . . . . Weapon . | . 2 1 . Tool/Special . | . . . . Unused Backups 13 | 1 3 4 5 Power 3 | 1 . 1 1 Propulsion 4 | . 3 . 1 Utility 2 | . . 1 1 Weapon 3 | . . 2 1 Tool/Special 1 | . . . 1 Average Slot Usage (%) 85 | . 99 96 80 Engine 9 | . 14 14 7 Core 4 | . . . 6 Leg 27 | . 28 28 27 Device 1 | . . 10 . Storage 5 | . 27 11 . Processor 2 | . . . 3 Protection 9 | . . 2 12 Energy Gun 13 | . 24 7 11 Energy Cannon 7 | . . . 10 Ballistic Cannon 3 | . 3 20 . Peak Build Rating 28 | 6 7 10 28 Average Rating 13 | 4 6 9 16 On Entrance 5 | . 6 7 10 Avg Prop Armor Cover (%) 4 | . . . 4 Naked Turns . | . . . . Heaviest Build 94 | 12 94 94 32 Greatest Support 46 | 20 20 20 46 Greatest Overweight (x) 10 | . 4 4 10 Average Overweight (x) . | . 3 . . Largest Inventory Capacity 25 | 8 25 25 5 Average Capacity 7 | 6 23 5 5 Most Carried 7 | 4 7 7 5 Average Carried 4 | 2 5 4 4 Final Capacity 25 | 8 25 5 5 Final Carried 7 | 4 7 4 1 Class Distribution -------------------- 96% | Mutant 3% | Scavenger-Mutant Dominant Class ---------------- Mutant | -10/Materials Mutant | -10/Subcaves Mutant | -8/Scraptown Resources | -11 -10 -10 -8 ----------- Run | Yrd Mat Sub Scr Matter Collected 955 | 260 40 109 546 Remotely . | . . . . Salvage Created 439 | 91 111 27 210 Parts 36 | 4 10 6 16 Haulers Intercepted . | . . . . Recyclers Shooed . | . . . . Parts Field Recycled . | . . . . Retrieved Matter . | . . . . Parts Self-Destructed 10 | . . 9 1 Prevented . | . . . . Parts Restored . | . . . . Kills | -11 -10 -10 -8 ------- Run | Yrd Mat Sub Scr Combat Hostiles Destroyed 8 | . 2 3 3 Guns 4 | . 2 . 2 Cannons 4 | . . 3 1 Classes Destroyed 6 | 2 2 1 1 Worker 1 | 1 . . . Recycler 1 | 1 . . . Watcher 1 | . 1 . . Swarmer 3 | . . 3 . Grunt 2 | . 2 . . Scrapper 3 | . . . 3 Best Kill Streak 3 | 1 2 3 2 Combat Bots Only 3 | . 2 3 2 Max Kills in Single Turn 1 | 1 1 1 1 Gunslinging . | . . . . Exploded . | . . . . Melee . | . . . . Uniques/NPCs Destroyed . | . . . . Combat | -11 -10 -10 -8 -------- Run | Yrd Mat Sub Scr Hostile Shots Fired 109 | . 23 25 61 Missed 29 | . 9 7 13 Hits 80 | . 14 18 48 Melee 6 | . . . 6 Projectile 74 | . 14 18 42 Critical Strikes 3 | . . . 3 Damage Taken 1223 | . 156 146 921 Core 259 | . 33 . 226 Absorbed by Shields . | . . . . Core Remaining (%) 100 | 100 . . . Volleys Fired 47 | 6 13 7 21 Largest 2 | 2 2 2 2 Hottest 160 | 80 90 80 160 Shots Fired 83 | 12 26 14 31 Gun 55 | 12 25 1 17 Cannon 26 | . 1 13 12 Launcher . | . . . . Special 2 | . . . 2 Kinetic 14 | . 1 13 . Thermal 59 | 12 25 1 21 Explosive . | . . . . Electromagnetic 8 | . . . 8 Robot Hit Streak 8 | 8 1 3 6 Robot Miss Streak 5 | 1 5 4 5 Penetration Max . | . . . . Secondary Targets . | . . . . Shots Hit Robots 40 | 8 7 5 20 Core Hits 17 | 3 5 3 6 Critical Kills . | . . . . Critical Parts Destroyed . | . . . . Critical Strikes 1 | . . . 1 Burn 1 | . . . 1 Melee Attacks . | . . . . Impact . | . . . . Slashing . | . . . . Piercing . | . . . . Sneak Attacks . | . . . . Combat Hostiles . | . . . . Follow-up Attacks . | . . . . Damage Inflicted 605 | 85 89 101 330 Guns 406 | 85 69 13 239 Cannons 199 | . 20 88 91 Explosions . | . . . . Melee . | . . . . Ramming . | . . . . Kinetic 108 | . 20 88 . Thermal 411 | 85 69 13 244 Explosive . | . . . . Electromagnetic 86 | . . . 86 Impact . | . . . . Slashing . | . . . . Piercing . | . . . . Highest Corruption . | . . . . Average Corruption . | . . . . Corruption Purged . | . . . . Corruption Blocked . | . . . . Overload Shots . | . . . . Overflow Damage . | . . . . Projectiles . | . . . . Explosions . | . . . . Melee . | . . . . Knockbacks 1 | . . 1 . Impact . | . . . . Kinetic 1 | . . 1 . Secondary . | . . . . Self-Inflicted Damage . | . . . . Shots . | . . . . Rammed . | . . . . Targets Rammed . | . . . . Kicked . | . . . . Crushed . | . . . . Highest Temperature 428 | 9 180 . 428 Average Temperature 126 | 3 60 . 174 Received Heat Transfer 555 | . 84 6 465 Effects 2 | . . . 2 Shutdowns 1 | . . . 1 Matter Decay 1 | . . . 1 Siege Activations . | . . . . Martial Activations . | . . . . Shielding Activations . | . . . . Robots Disrupted . | . . . . Combat Hostiles . | . . . . Robots Corrupted . | . . . . Combat Hostiles . | . . . . Parts Fried . | . . . . Impact Corruptions . | . . . . Robots Melted . | . . . . Combat Hostiles . | . . . . Parts Melted 3 | 1 . . 2 Heat Transferred 959 | 200 198 37 524 Parts Sabotaged . | . . . . Parts Stolen . | . . . . Parts Stripped . | . . . . Power Chain Reactions . | . . . . Alert | -11 -10 -10 -8 ------- Run | Yrd Mat Sub Scr Maximum Alert Level . | . . . . Low Security (%) 100 | 100 100 . . Level 1 . | . . . . Level 2 . | . . . . Level 3 . | . . . . Level 4 . | . . . . Level 5 . | . . . . High Security . | . . . . Max Security . | . . . . Peak Influence 40 | 5 40 . . Initial . | . . . . Average 3 | . 3 . . Influence Increases 157 | 10 57 90 . Destroy 0b10 Robot/C 100 | . 40 60 . Destroy 0b10 Robot/NC 15 | 10 5 . . Destroy Leader 12 | . 12 . . Lose Combat Pursuer 30 | . . 30 . Influence Decreases 157 | 10 57 40 50 Entered New Map 50 | . . . 50 Time Decay 107 | 10 57 40 . Squads Dispatched 1 | . 1 . . Investigation . | . . . . Extermination . | . . . . Reinforcement 1 | . 1 . . Assault . | . . . . Garrison . | . . . . Intercept . | . . . . Searches Triggered . | . . . . Construction Impeded . | . . . . Haulers Reinforced . | . . . . Active Scanning Responses . | . . . . Cargo Convoy Interrupts . | . . . . Stealth | -11 -10 -10 -8 --------- Run | Yrd Mat Sub Scr Distress Signals . | . . . . Communications Jammed . | . . . . Distress Signals . | . . . . Times Spotted 34 | . 7 8 19 Peak Tracking Total 6 | . 2 6 5 Tactical Retreats 2 | . . 1 1 Traps | -11 -10 -10 -8 ------- Run | Yrd Mat Sub Scr Traps Triggered . | . . . . Indirectly . | . . . . Trap Hack Attempts . | . . . . Triggered . | . . . . Disarmed . | . . . . Reprogrammed . | . . . . Reused . | . . . . Traps Extracted . | . . . . Installed . | . . . . Triggered . | . . . . Machines | -11 -10 -10 -8 ---------- Run | Yrd Mat Sub Scr Machines Disabled . | . . . . Max in Single Turn . | . . . . Machines Repaired . | . . . . Machines Dismantled . | . . . . Machines Sabotaged . | . . . . Overloaded Fab Kills . | . . . . Hacking | -11 -10 -10 -8 --------- Run | Yrd Mat Sub Scr Machines Accessed 4 | . . . 4 Terminals . | . . . . Fabricators . | . . . . Repair Stations . | . . . . Recycling Units . | . . . . Scanalyzers . | . . . . Garrison Access . | . . . . Total Hacks 27 | . . . 27 Successful 27 | . . . 27 Failed . | . . . . Catastrophic . | . . . . Database Lockouts . | . . . . Manual . | . . . . Terminals . | . . . . Fabricators . | . . . . Repair Stations . | . . . . Recycling Units . | . . . . Scanalyzers . | . . . . Garrison Access . | . . . . Terminal Hacks 27 | . . . 27 Record 27 | . . . 27 Fabricator Hacks . | . . . . Repair Station Hacks . | . . . . Recycling Unit Hacks . | . . . . Scanalyzer . | . . . . Garrison Access Hacks . | . . . . Unauthorized Hacks . | . . . . Terminals . | . . . . Fabricators . | . . . . Repair Stations . | . . . . Recycling Units . | . . . . Scanalyzers . | . . . . Garrison Access . | . . . . Data Cores Recovered . | . . . . Used . | . . . . Hacking Detections . | . . . . Full Trace Events . | . . . . Feedback Events . | . . . . Feedback Blocked . | . . . . Robot Schematics Acquired . | . . . . Robots Built . | . . . . Authchips . | . . . . Time . | . . . . Total Robot Build Rating . | . . . . Part Schematics Acquired . | . . . . Parts Built . | . . . . Authchips . | . . . . Time . | . . . . Total Part Build Rating . | . . . . Part Studies Acquired . | . . . . Parts Repaired . | . . . . Time . | . . . . Parts Recycled . | . . . . Recycled Matter . | . . . . Retrieved Matter . | . . . . Retrieved Components . | . . . . Parts Scanalyzed . | . . . . Part Schematics Acquired . | . . . . Parts Damaged . | . . . . Bothacking | -11 -10 -10 -8 ------------ Run | Yrd Mat Sub Scr Used RIF Installer . | . . . . Robots Hacked . | . . . . Non-combat . | . . . . Combat . | . . . . Robot Hacks Applied . | . . . . Relay Couplers Released . | . . . . Fabnet Peak Effective % . | . . . . Robots Rewired . | . . . . Allies Hacked . | . . . . Hacks Repelled . | . . . . Allies | -11 -10 -10 -8 -------- Run | Yrd Mat Sub Scr Total Allies . | . . . . Largest Group . | . . . . Highest-Rated Group . | . . . . Highest-Rated Ally . | . . . . Total Orders . | . . . . Ally Attacks . | . . . . Total Damage . | . . . . Kills . | . . . . Allies Corrupted . | . . . . Allies Melted 7 | . . . 7 Intel | -11 -10 -10 -8 ------- Run | Yrd Mat Sub Scr Active Infowar (turns) 651 | . . . 651 Machine Analysis 651 | . . . 651 Robot Analysis Total . | . . . . Derelict Logs Recovered 1 | . . . 1 Drone Launches . | . . . . Drone Recoveries . | . . . . Exploration | -11 -10 -10 -8 ------------- Run | Yrd Mat Sub Scr Turns Passed 4267 | 122 581 572 2992 Spaces Moved 2222 | 76 143 413 1590 Core 52 | 2 . . 50 Treads . | . . . . Legs 2170 | 74 143 413 1540 Wheels . | . . . . Hover . | . . . . Flight . | . . . . Fastest Speed 50 | 50 120 120 90 Average Speed 178 | 118 360 129 177 Slowest Speed 550 | 120 400 400 550 Overloaded Moves . | . . . . Propulsion Burnouts . | . . . . Robots Hopped . | . . . . Potential Cave-ins . | . . . . Cave-ins Triggered . | . . . . Exploration Rate (%) 32 | 4 21 25 81 Regions Visited 3 Branch Regions 2 Pre-discovered Areas . | . . . . Known Exits Taken . | . . . . Unknown Exits Taken 3 | 1 1 1 . Scrap Searched 8 | . . . 8 Spaces Dug . | . . . . Terrain Destroyed 1 | . . . 1 Melee . | . . . . Projectile 1 | . . . 1 AOE . | . . . . Terrain Rammed . | . . . . Walls Destroyed . | . . . . Machines Disabled . | . . . . Actions | -11 -10 -10 -8 --------- Run | Yrd Mat Sub Scr Total 2451 | 93 187 441 1730 Wait 77 | . 12 . 65 Move 2219 | 75 142 412 1590 Hop . | . . . . Pick Up 26 | 5 8 4 9 Fast Attach 28 | 6 3 4 15 Attach 11 | . 2 2 7 Detach 1 | . . . 1 Swap 3 | . . . 3 Drop 39 | 1 7 12 19 Fire 47 | 6 13 7 21 Melee . | . . . . Ram . | . . . . Kick . | . . . . Crush . | . . . . Escape Stasis . | . . . . Rewire . | . . . . Trap . | . . . . Miscellaneous . | . . . . Route ------- -11/Scrapyard -10/Materials -10/Subcaves -8/Scraptown (discovered 2 exits: [*Fac x2]) History --------- Turn | Location | Event 11 | -11/Scrapyard | Discovered new exit (range 15) 123 | -11/Scrapyard | Entered Materials 124 | -10/Materials | Met a group of wandering Federalists 313 | -10/Materials | Build established: Mutant 668 | -10/Materials | Discovered new exit (range 10) 704 | -10/Materials | Entered Subcaves 705 | -10/Subcaves | Continued accompanying wandering Federalists (4) 705 | -10/Subcaves | Approached by a straggling Scientist 813 | -10/Subcaves | Visited triangular shrine 827 | -10/Subcaves | Found Prototype Device 997 | -10/Subcaves | Shifting Twisted Machinery released Battle Cannon 1010 | -10/Subcaves | Shifting Twisted Machinery released Sub. Power Source 1149 | -10/Subcaves | Shifting Twisted Machinery released Riot Gun 1276 | -10/Subcaves | Entered Scraptown 1363 | -8/Scraptown | Visited The Evicted 1424 | -8/Scraptown | Visited Assassins FH 1509 | -8/Scraptown | Visited Cyclists 1570 | -8/Scraptown | Visited Bundlers 1828 | -8/Scraptown | Scanned Subdweller tech in exchange for log data 1836 | -8/Scraptown | Learned Research emergency access door positions 2075 | -8/Scraptown | Discovered new exit (range 5) 2278 | -8/Scraptown | Visited SPCMW 2351 | -8/Scraptown | Visited UFD Registry 2354 | -8/Scraptown | Registered with UFD as "Fiberwarp" 2404 | -8/Scraptown | Visited Shadow of the Wyrm 2977 | -8/Scraptown | Visited Modified Component R&D 3230 | -8/Scraptown | Visited Infowarlord's Domain 3464 | -8/Scraptown | Visited Research Penetration Think Tank 3580 | -8/Scraptown | Discovered new exit (range 5) 3632 | -8/Scraptown | Visited Science Guys 3666 | -8/Scraptown | Visited Junk Repository 3746 | -8/Scraptown | Visited Scrap Suit Storage 3804 | -8/Scraptown | Met Optimus 3804 | -8/Scraptown | Accepted into 0bPrime 3893 | -8/Scraptown | Civil war broke out across Scraptown 3938 | -8/Scraptown | Lost 3 allies 4085 | -8/Scraptown | Attached CPS modules to SW-TAD(j) 4093 | -8/Scraptown | Core integrity fell below 50% 4094 | -8/Scraptown | Attached CPS modules to 2K-NXA(j) 4098 | -8/Scraptown | Core integrity fell below 20% 4133 | -8/Scraptown | Lost 5 parts (1p1n1u2w) 4268 | -8/Scraptown | Destroyed by PW-0WZ(x) with Makeshift Spear Last Messages --------------- 04173_ 6M-SVA(j) destroyed. 04187_ Acquired Lgt. Deuterium Engine. 04192_ FW-AG0(E) cannibalizes Ovr. Treads to repair Ovr. Treads. 04197_ Acquired Ovr. Pulse Rifle. 04199_ Dropped Ovr. Titanium Leg. 04199_ Acquired 10 matter. 04201_ 9K-W0J(E) cannibalizes Bolt Gun to repair Ovr. Barrage Gun. 04225_ 9K-W0J(E) cannibalizes Lgt. Deuterium Engine to repair Imp. Deuterium Engine. 04229_ 9K-W0J(E) cannibalizes Corrupted Ovr. Treads to repair Ovr. Treads. 04229_ Acquired Mak. Salvage Targeting Computer. 04239_ Ovr. Pulse Rifle suddenly begins malfunctioning. 04239_ Penetrated by Bolt. 04245_ Acquired 10 matter. 04256_ Lgt. Deuterium Engine destroyed. 04257_ PW-0WZ(x) suffers critical hit (Burn). 04263_ PW-0WZ(x) heat damages Imp. Sensor Array. 04264_ Ovr. Pulse Rifle suddenly begins malfunctioning. 04265_ PW-0WZ(x) heat short circuits VSS Leg. 04268_ Slug penetrates Wall. Map ----- +----------------------------------------------------+ | #??##########?# #""|" "#?????????????????? | | #??#""""""""#?# #"""" """#?????????????????? | | #??#""""" ""#?# #"" """"#?????????????????? | | #??#"" "#?# # ""#?????????????????? | | #??#"" "#?# #&" "" ""#?????????????????? | | #??#"" #?# #&" "" ""#?????????????????? | | #??#"" "#?#!*#" #?????????????????? | | #??#" #?#%[# "#?????????????????? | | ###??###### ###?#!!## ##########?????????????????? | | ########### #####*%!" #########??????????????????? | | """"""""""" "%"""=[!* "## ==#??????????????????? | | ! %%!%=== ## !=#??????????????????? | | *=!!!!=!%="# ####??????????????????? | | [ [!%=!*=!## !#??????????????????? | | E !!!%= [# =!#??????????????????? | | %*!==/ * !#??????????????????? | | """""""""""""""" %[!!! ## ####??????????????????? | | """""""""""""""""j=%=%/## [#??????????????????? | | ###############"! ==!* ## ] !#??????????????????? | | ##????????#"" * #############?????????????? | | X"#????????#"" = ## #"""""#""#?????????????? | | " ##????????#"" !%! ##! !! !! !#?????????????? | | "" X"#??????###""! ! =;# #?????????????? | | " ######### """%=!% !!;=! #?????????????? | | = = ! [=[!!x=%! X" #?????????????? | | !%[ !%! =!!"##@=! ##"#?????????????? | | " #########=#"" =%[% ##==|!!! #????????????????? | | "" ""#??????###" * ##=#"""""#????????????????? | | " ##????????#"" ##########????????????????? | | X"#????????#"" "#?????????????????????????? | | ##????????#" ! "#???"?????????????????????? | | #####????######"" !% "#?? " ""??????????????????? | | "???????""""""""" ##" " "?????????????????? | | """??""""""""" "" " " "?????????????????? | | = "##" """??????????????????? | | !%["#?? ""???????????????????? | | !* "#??? ""???????????????????? | | % !=##??? ????????????????????? | | ![! [=! #????????????????????????? | | " """"""" "%="" " !!!##????????????????????????? | | # #????######=###"#= ##????????????????????????? | | ? ????????? # "#????????????????????????? | | ??????????# * # "#????????????????????????? | | ??????????# =%! # ##????????????????????????? | | ??????????# $ $ # #?????????????????????????? | | ??????????# ## # #?????????????????????????? | | ??????????# ??# # ############??????????????? | | ??????????##???##### #??????????????? | | ???????????????????# ##??????????????? | | ???????????????????# ! = #??????????????? | +----------------------------------------------------+ Best States ------------- Heat Dissipation 39 Energy Generation 25 Energy Capacity 500 Matter Stores 300 Matter Capacity 300 Sight Range 16 Terrain Scan Density 10 Armor Coverage 800 Evasion (%) 55 Salvage Targeting 4 Item Schematics ----------------- None Robot Schematics ------------------ None Fabricated ------------ Nothing Repaired ---------- Nothing Studied --------- None Alien Tech Used ----------------- None Achievements -------------- Civilization 2243 Librarian Link The Feds Sprinter Strength In Numbers Challenges ------------ None Game ------ Seed DeepThrowingSpiker Manual? 0 Play Time 00:39:49 Cumulative 2.3 hours Start 2026.08.13 @ 00:04:56 End 2026.08.13 @ 00:43:45 Sessions 1 Manual Loads 0 Difficulty Rogue Special Mode None Game No. 6 Rogue 6 Adventurer 0 Explorer 0 Win Type - Total 0 Types 0/0/0/0/0/0/0/0/0/0 Lore% 5 Gallery% 5 Achievement% 4 Wizard Run 0 Options --------- Layout 1 ASCII 0 Keyboard 1 Movement Arrows Keybinds 1 Fullscreen 2 Font 32/SmallcapsGlow Map View 77x35 Zoom Use 0% Tactical HUD 1 Map Filters NONE Filters NONE Steam 1 RUN: cfeb6e62-a57a-479c-b685-467ee03ca16c